Workbook

Sheet Лист1
A1: Школа | C1: МБОУ"ООШ им.Ф.Ахметова С.Каркаусь" | F1: Утвердил: | G1: должность | H1: и.о.директора школы
A2: Типовое примерное меню приготавливаемых блюд | G2: фамилия | H2: Нуруллина З.Н.
A3: Возрастная категория | E3: 7-11 лет | G3: дата | H3: 12 | I3: 1 | J3: 2026
H4: день | I4: месяц
A5: Неделя | B5: День недели | C5: Прием пищи | D5: Раздел меню | E5: Блюда | F5: Вес блюда, г | G5: Белки | H5: Жиры | I5: Углеводы | J5: Калорийность | K5: № рецептуры | L5: Цена
A6: 1 | B6: 1 | C6: Завтрак | D6: 2 блюдо | E6: мясо тушеное | F6: 100 | G6: 10.5 | H6: 11.03 | I6: 3.184 | J6: 196 | K6: 256/2015 | L6: 52.75
D7: гор.напиток | E7: чай с сахаром | F7: 210 | G7: 0.2 | H7: 0 | I7: 10.1 | J7: 41.1 | K7: 376/2015 | L7: 1.36
D8: хлеб бел. | E8: пшеничный | F8: 20 | G8: 1.52 | H8: 0.16 | I8: 9.8 | J8: 47.32 | L8: 1.4
D9: хлеб черн. | E9: ржано-пшеничный | F9: 20 | G9: 1 | H9: 0.2 | I9: 9 | J9: 44 | L9: 1.4
D10: фрукты
D11: гарнир | E11: макаронные изделия отварные с маслом | F11: 155 | G11: 5.1 | H11: 4.468 | I11: 28.5 | J11: 187 | K11: 203/2015 | L11: 8.23
D12: закуска | E12: салат из белокочанной капусты | F12: 60 | G12: 0.78 | H12: 1.94 | I12: 3.87 | J12: 36 | K12: 45/2015 | L12: 2.62
D13: итого | F13: 565 | G13: =SUM(G6:G12) -> 19.1 | H13: =SUM(H6:H12) -> 17.798 | I13: =SUM(I6:I12) -> 64.454 | J13: =SUM(J6:J12) -> 551.42 | L13: =SUM(L6:L12) -> 67.76
A14: 1 | B14: 1 | C14: Завтрак 2 | D14: гор. блюдо | E14: каша рисовая | F14: 155 | G14: 3.9 | H14: 5.8 | I14: 31.4 | J14: 193.9 | K14: 182 | L14: 14.66
D15: гор.напиток | E15: компот из смеси сухофруктов | F15: 200 | G15: 0 | H15: 0 | I15: 14.6 | J15: 58.1 | K15: 349/2015 | L15: 3.69
D16: хлеб бел. | E16: пшеничный | F16: 30 | G16: 2.28 | H16: 0.24 | I16: 14.7 | J16: 71 | L16: 2.1
D17: итого | F17: 385 | G17: =SUM(G14:G16) -> 6.18 | H17: =SUM(H14:H16) -> 6.04 | I17: =SUM(I14:I16) -> 60.7 | J17: =SUM(J14:J16) -> 323 | L17: =SUM(L14:L16) -> 20.45
A18: 1 | B18: 1 | C18: Обед | D18: закуска
D19: 1 блюдо
D20: 2 блюдо
D21: гарнир
D22: напиток
D23: хлеб бел.
D24: хлеб черн.
D27: итого | F27: 0 | G27: 0 | H27: 0 | I27: 0 | J27: 0 | L27: 0
A28: 1 | B28: 1 | C28: Полдник | D28: булочное
D29: напиток
D32: итого | G32: =SUM(G28:G31) -> 0 | H32: =SUM(H28:H31) -> 0 | I32: 0 | J32: 0 | L32: 0
A33: 1 | B33: 1 | C33: Ужин | D33: гор.блюдо
D34: гарнир
D35: напиток
D36: хлеб
D39: итого | F39: 0 | G39: 0 | H39: 0 | I39: 0 | J39: 0 | L39: 0
A40: 1 | B40: 1 | C40: Ужин 2 | D40: кисломол.
D41: булочное
D42: напиток
D43: фрукты
D46: итого | F46: 0 | G46: 0 | H46: 0 | I46: 0 | J46: 0 | L46: 0
A47: 1 | B47: 1 | C47: Итого за день: | F47: =F13+F17+F32 -> 950 | G47: =G13+G17+G32 -> 25.28 | H47: =H13+H17+H32 -> 23.838 | I47: 125.154 | J47: 874.42 | L47: =L13+L17+L32 -> 88.21
A48: 1 | B48: 2 | C48: Завтрак | D48: 2 блюдо | E48: фрикадельки в соусе | F48: 105 | G48: 8.33 | H48: 7.743 | I48: 3.194 | J48: 175 | K48: 280 | L48: 31.01
D49: гор.напиток | E49: чай с сахаром | F49: 210 | G49: 0.2 | H49: 0 | I49: 10.1 | J49: 41.1 | K49: 376 | L49: 1.36
D50: хлеб бел. | E50: пшеничный | F50: 20 | G50: 1.52 | H50: 0.16 | I50: 9.8 | J50: 47.32 | L50: 1.4
D51: хлеб черн. | E51: ржано-пшеничный | F51: 20 | G51: 1 | H51: 0.2 | I51: 9 | J51: 44 | L51: 1.4
D52: гарнир | E52: каша вязкая (гречневая) | F52: 150 | G52: 6.662 | H52: 9.024 | I52: 34 | J52: 170 | K52: 303/2015 | L52: 8.40
D53: закуска | E53: салат из моркови с сахаром | F53: 60 | G53: 0.516 | H53: 2.132 | I53: 4.45 | J53: 50 | K53: 62/2015 | L53: 2.73
D55: итого | F55: 565 | G55: =SUM(G48:G54) -> 18.228 | H55: =SUM(H48:H54) -> 19.259 | I55: =SUM(I48:I54) -> 70.544 | J55: =SUM(J48:J54) -> 527.42 | L55: =SUM(L48:L54) -> 46.3
A56: 1 | B56: 2 | C56: Завтрак 2 | D56: гор.блюдо | E56: суп картофельный с геркулесом на мясо-костном бульоне | F56: 250 | G56: 4.5 | H56: 2.6 | I56: 15.2 | J56: 103 | K56: 98/2008 | L56: 12.28
D57: гор.напиток | E57: чай с сахаром | F57: 210 | G57: 0.2 | H57: 0 | I57: 10.1 | J57: 41.1 | K57: 376/2015 | L57: 1.36
D58: хлеб черн. | E58: ржано-пшеничный | F58: 30 | G58: 1.5 | H58: 0.3 | I58: 13.5 | J58: 66 | L58: 2.1
D59: итого | F59: 490 | G59: =SUM(G56:G58) -> 6.2 | H59: =SUM(H56:H58) -> 2.9 | I59: 38.8 | J59: 210.1 | L59: =SUM(L56:L58) -> 15.74
A60: 1 | B60: 2 | C60: Обед | D60: закуска
D61: 1 блюдо
D62: 2 блюдо
D63: гарнир
D64: напиток
D65: хлеб бел.
D66: хлеб черн.
D69: итого | F69: 0 | G69: 0 | H69: 0 | I69: 0 | J69: 0 | L69: 0
A70: 1 | B70: 2 | C70: Полдник | D70: булочное
D71: напиток
D74: итого | G74: =SUM(G70:G73) -> 0 | H74: =SUM(H70:H73) -> 0 | I74: 0 | J74: 0 | L74: =SUM(L70:L73) -> 0
A75: 1 | B75: 2 | C75: Ужин | D75: гор.блюдо
D76: гарнир
D77: напиток
D78: хлеб
D81: итого | F81: 0 | G81: 0 | H81: 0 | I81: 0 | J81: 0 | L81: 0
A82: 1 | B82: 2 | C82: Ужин 2 | D82: кисломол.
D83: булочное
D84: напиток
D85: фрукты
D88: итого | F88: 0 | G88: 0 | H88: 0 | I88: 0 | J88: 0 | L88: 0
A89: 1 | B89: 2 | C89: Итого за день: | F89: =F59+F74+F55 -> 1055 | G89: =G59+G74+G55 -> 24.428 | H89: =H59+H74+H55 -> 22.159 | I89: =I59+I74+I55 -> 109.344 | J89: =J59+J74+J55 -> 737.52 | L89: =L59+L74+L55 -> 62.04
A90: 1 | B90: 3 | C90: Завтрак | D90: гор.блюдо | E90: рагу из птицы | F90: 200 | G90: 12.3 | H90: 17.66 | I90: 29.85 | J90: 313 | K90: 289/2015 | L90: 32.44
D91: гор.напиток | E91: какао с молоком | F91: 200 | G91: 3.78 | H91: 0.67 | I91: 26 | J91: 125 | K91: 382/2015 | L91: 8.6
D92: хлеб бел. | E92: пшеничный | F92: 20 | G92: 1.52 | H92: 0.16 | I92: 9.8 | J92: 47.32 | L92: 1.4
D93: хлеб черн. | E93: ржано-пшеничный | F93: 20 | G93: 1 | H93: 0.2 | I93: 9 | J93: 44 | L93: 1.4
D94: фрукты
D95: гарнир
D96: закуска | E96: салат из свеклы отварной | F96: 60 | G96: 0.855 | H96: 3.653 | I96: 11.58 | J96: 56 | K96: 52/2015 | L96: 2.7
D97: итого | F97: 510 | G97: =SUM(G90:G96) -> 19.455 | H97: =SUM(H90:H96) -> 22.343 | I97: =SUM(I90:I96) -> 86.23 | J97: =SUM(J90:J96) -> 585.32 | L97: =SUM(L90:L96) -> 46.54
A98: 1 | B98: 3 | C98: Завтрак 2 | D98: гор.блюдо | E98: каша пшеничная | F98: 150 | G98: 5.1 | H98: 6 | I98: 27.5 | J98: 184 | K98: 189/2008 | L98: 12.21
D99: гор.напиток | E99: чай с сахаром | F99: 210 | G99: 0.2 | H99: 0 | I99: 10.1 | J99: 41.1 | K99: 376/2015 | L99: 1.36
D100: хлеб бел. | E100: пшеничный | F100: 30 | G100: 2.28 | H100: 0.24 | I100: 14.7 | J100: 70.95 | L100: 2.1
D101: итого | F101: 390 | G101: =SUM(G98:G100) -> 7.58 | H101: =SUM(H98:H100) -> 6.24 | I101: =SUM(I98:I100) -> 52.3 | J101: =SUM(J98:J100) -> 296.05 | L101: =SUM(L98:L100) -> 15.67
A102: 1 | B102: 3 | C102: Обед | D102: закуска
D103: 1 блюдо
D104: 2 блюдо
D105: гарнир
D106: напиток
D107: хлеб бел.
D108: хлеб черн.
D111: итого | F111: 0 | G111: 0 | H111: 0 | I111: 0 | J111: 0 | L111: 0
A112: 1 | B112: 3 | C112: Полдник | D112: булочное
D113: напиток
D116: итого | G116: =SUM(G112:G115) -> 0 | H116: =SUM(H112:H115) -> 0 | I116: =SUM(I112:I115) -> 0 | J116: =SUM(J112:J115) -> 0 | L116: =SUM(L112:L115) -> 0
A117: 1 | B117: 3 | C117: Ужин | D117: гор.блюдо
D118: гарнир
D119: напиток
D120: хлеб
D123: итого | F123: 0 | G123: 0 | H123: 0 | I123: 0 | J123: 0 | L123: 0
A124: 1 | B124: 3 | C124: Ужин 2 | D124: кисломол.
D125: булочное
D126: напиток
D127: фрукты
D130: итого | F130: 0 | G130: 0 | H130: 0 | I130: 0 | J130: 0 | L130: 0
A131: 1 | B131: 3 | C131: Итого за день: | F131: =SUM(F130,F123,F116,F111,F97,F101) -> 900 | G131: =SUM(G130,G123,G116,G111,G97,G101) -> 27.035 | H131: =SUM(H130,H123,H116,H111,H97,H101) -> 28.583 | I131: =SUM(I130,I123,I116,I111,I97,I101) -> 138.53 | J131: =SUM(J130,J123,J116,J111,J97,J101) -> 881.37 | L131: =SUM(L130,L123,L116,L111,L97,L101) -> 62.21
A132: 1 | B132: 4 | C132: Завтрак | D132: 2 блюдо | E132: котлеты | F132: 90 | G132: 13.67 | H132: 13.671 | I132: 8.7 | J132: 209.6 | K132: 268/2015 | L132: 48.35
D133: гор.напиток | E133: чай с сахаром | F133: 210 | G133: 0.2 | H133: 0 | I133: 10.1 | J133: 41.1 | K133: 376/2015 | L133: 1.36
D134: хлеб бел. | E134: пшеничный | F134: 20 | G134: 1.52 | H134: 0.16 | I134: 9.8 | J134: 47.32 | L134: 1.4
D135: хлеб черн. | E135: ржано-пшеничный | F135: 20 | G135: 1 | H135: 0.2 | I135: 9 | J135: 44 | L135: 1.4
D136: гарнир | E136: рис отварной | F136: 150 | G136: 3.8 | H136: 8.6 | I136: 38.9 | J136: 247 | K136: 304 | L136: 16.54
D137: фрукты
D138: закуска | E138: салат овощной с яблоками | F138: 60 | G138: 3.5 | H138: 6.11 | I138: 9.9 | J138: 124 | K138: 56/2015 | L138: 7.18
D139: итого | F139: 550 | G139: =SUM(G132:G138) -> 23.69 | H139: =SUM(H132:H138) -> 28.741 | I139: =SUM(I132:I138) -> 86.4 | J139: =SUM(J132:J138) -> 713.02 | L139: =SUM(L132:L138) -> 76.23
A140: 1 | B140: 4 | C140: Завтрак 2 | D140: гор.блюдо | E140: борщ с мясом | F140: 250 | G140: 4.3 | H140: 2 | I140: 13.3 | J140: 91 | K140: 57 | L140: 14.64
D141: гор.напиток | E141: компот из смеси сухофруктов | F141: 200 | G141: 0 | H141: 0 | I141: 14.6 | J141: 58.1 | K141: 349/2015 | L141: 3.69
D142: хлеб черн. | E142: ржаной | F142: 30 | G142: 1.5 | H142: 0.3 | I142: 13.5 | J142: 66 | L142: 2.1
D143: итого | F143: 480 | G143: =SUM(G140:G142) -> 5.8 | H143: =SUM(H140:H142) -> 2.3 | I143: =SUM(I140:I142) -> 41.4 | J143: =SUM(J140:J142) -> 215.1 | L143: =SUM(L140:L142) -> 20.43
A144: 1 | B144: 4 | C144: Обед | D144: закуска
D145: 1 блюдо
D146: 2 блюдо
D147: гарнир
D148: напиток
D149: хлеб бел.
D150: хлеб черн.
D153: итого | F153: 0 | G153: 0 | H153: 0 | I153: 0 | J153: 0 | L153: 0
A154: 1 | B154: 4 | C154: Полдник | D154: булочное
D155: напиток
D158: итого | G158: =SUM(G154:G157) -> 0 | H158: =SUM(H154:H157) -> 0 | I158: =SUM(I154:I157) -> 0 | J158: =SUM(J154:J157) -> 0 | L158: =SUM(L154:L157) -> 0
A159: 1 | B159: 4 | C159: Ужин | D159: гор.блюдо
D160: гарнир
D161: напиток
D162: хлеб
D165: итого | F165: 0 | G165: 0 | H165: 0 | I165: 0 | J165: 0 | L165: 0
A166: 1 | B166: 4 | C166: Ужин 2 | D166: кисломол.
D167: булочное
D168: напиток
D169: фрукты
D172: итого | F172: 0 | G172: 0 | H172: 0 | I172: 0 | J172: 0 | L172: 0
A173: 1 | B173: 4 | C173: Итого за день: | F173: =SUM(F172,F165,F158,F153,F143,F139) -> 1030 | G173: =SUM(G172,G165,G158,G153,G143,G139) -> 29.49 | H173: =SUM(H172,H165,H158,H153,H143,H139) -> 31.041 | I173: =SUM(I172,I165,I158,I153,I143,I139) -> 127.8 | J173: =SUM(J172,J165,J158,J153,J143,J139) -> 928.12 | L173: =SUM(L172,L165,L158,L153,L143,L139) -> 96.66
A174: 1 | B174: 5 | C174: Завтрак | D174: гор блюдо | E174: пельмени мясные отварные | F174: 168 | G174: 9 | H174: 10.2 | I174: 18.15 | J174: 213 | K174: 392/2015 | L174: 71.75
D175: гор.напиток | E175: чай с лимоном | F175: 222 | G175: 0.084 | H175: 0.012 | I175: 15.185 | J175: 62 | K175: 377/2015 | L175: 2.94
D176: хлеб бел. | E176: пшеничный | F176: 30 | G176: 2.28 | H176: 0.24 | I176: 14.76 | J176: 71 | L176: 2.1
D177: хлеб черн. | E177: ржано-пшеничный | F177: 30 | G177: 1.5 | H177: 0.3 | I177: 13.5 | J177: 66 | L177: 2.1
D178: фрукты
D179: гарнир
D180: закуска | E180: салат из белокочанной капусты | F180: 60 | G180: 0.78 | H180: 1.94 | I180: 3.87 | J180: 36 | K180: 45/2015 | L180: 2.62
D181: итого | F181: 510 | G181: =SUM(G174:G180) -> 13.644 | H181: =SUM(H174:H180) -> 12.692 | I181: =SUM(I174:I180) -> 65.465 | J181: =SUM(J174:J180) -> 448 | L181: =SUM(L174:L180) -> 81.51
A182: 1 | B182: 5 | C182: Завтрак 2 | D182: гор.блюдо | E182: каша молочная (манная) | F182: 150 | G182: 5.1 | H182: 6.075 | I182: 30.8 | J182: 197.55 | K182: 181/2015 | L182: 13.25
D183: гор.напиток | E183: чай с сахаром | F183: 210 | G183: 0.2 | H183: 0 | I183: 10.1 | J183: 41.1 | K183: 376/2015 | L183: 1.36
D184: хлеб бел. | E184: пшеничный | F184: 30 | G184: 2.28 | H184: 0.24 | I184: 14.7 | J184: 70.95 | L184: 2.1
D185: итого | F185: 390 | G185: =SUM(G182:G184) -> 7.58 | H185: =SUM(H182:H184) -> 6.315 | I185: =SUM(I182:I184) -> 55.6 | J185: =SUM(J182:J184) -> 309.6 | L185: =SUM(L182:L184) -> 16.71
A186: 1 | B186: 5 | C186: Обед | D186: закуска
D187: 1 блюдо
D188: 2 блюдо
D189: гарнир
D190: напиток
D191: хлеб бел.
D192: хлеб черн.
D195: итого | F195: 0 | G195: 0 | H195: 0 | I195: 0 | J195: 0 | L195: 0
A196: 1 | B196: 5 | C196: Полдник | D196: булочное
D197: напиток
D200: итого | G200: =SUM(G196:G199) -> 0 | H200: =SUM(H196:H199) -> 0 | I200: =SUM(I196:I199) -> 0 | J200: =SUM(J196:J199) -> 0 | L200: =SUM(L196:L199) -> 0
A201: 1 | B201: 5 | C201: Ужин | D201: гор.блюдо
D202: гарнир
D203: напиток
D204: хлеб
D207: итого | F207: 0 | G207: 0 | H207: 0 | I207: 0 | J207: 0 | L207: 0
A208: 1 | B208: 5 | C208: Ужин 2 | D208: кисломол.
D209: булочное
D210: напиток
D211: фрукты
D214: итого | F214: 0 | G214: 0 | H214: 0 | I214: 0 | J214: 0 | L214: 0
A215: 1 | B215: 5 | C215: Итого за день: | F215: =SUM(F214,F207,F200,F195,F185,F181) -> 900 | G215: =SUM(G214,G207,G200,G195,G185,G181) -> 21.224 | H215: =SUM(H214,H207,H200,H195,H185,H181) -> 19.007 | I215: =SUM(I214,I207,I200,I195,I185,I181) -> 121.065 | J215: =SUM(J214,J207,J200,J195,J185,J181) -> 757.6 | L215: =SUM(L214,L207,L200,L195,L185,L181) -> 98.22
A216: 1 | B216: 6 | C216: Завтрак | D216: 2 блюдо | E216: котлеты рубленные из бройлер цыплят | F216: 90 | G216: 11.52 | H216: 6.04 | I216: 21.78 | J216: 178.8 | K216: 382/2015 | L216: 28.3
D217: гор.напиток | E217: какао с молоком | F217: 200 | G217: 3.78 | H217: 0.67 | I217: 26 | J217: 125 | L217: 11.04
D218: хлеб бел. | E218: пшеничный | F218: 20 | G218: 1.52 | H218: 0.16 | I218: 9.8 | J218: 47.32 | L218: 1.4
D219: хлеб черн. | E219: ржано-пшеничный | F219: 20 | G219: 1 | H219: 0.2 | I219: 9 | J219: 44 | L219: 1.4
D220: гарнир | E220: пюре картофельное | F220: 150 | G220: 3.09 | H220: 8.282 | I220: 22 | J220: 172 | K220: 312/2015 | L220: 12.81
D221: закуска | E221: салат из моркови с сахаром | F221: 60 | G221: 0.516 | H221: 2.132 | I221: 4.45 | J221: 50 | K221: 62/2015 | L221: 2.73
D223: итого | F223: 550 | G223: =SUM(G216:G222) -> 21.426 | H223: =SUM(H216:H222) -> 17.484 | I223: =SUM(I216:I222) -> 93.03 | J223: =SUM(J216:J222) -> 617.12 | L223: =SUM(L216:L222) -> 57.68
A224: 1 | B224: 6 | C224: Завтрак 2 | D224: гор.блюдо | E224: щи из свежей капусты с картофелем на мясо-костном бульоне | F224: 250 | G224: 4.3 | H224: 2.1 | I224: 11.8 | J224: 84.8 | K224: 67/2015 | L224: 13.49
D225: гор.напиток | E225: компот из смеси сухофруктов | F225: 200 | G225: 0 | H225: 0 | I225: 14.6 | J225: 58.1 | K225: 349/2015 | L225: 3.69
D226: хлеб черн. | E226: ржано-пшеничный | F226: 30 | G226: 1.5 | H226: 0.3 | I226: 13.5 | J226: 66 | L226: 2.1
D227: итого | F227: 480 | G227: =SUM(G224:G226) -> 5.8 | H227: =SUM(H224:H226) -> 2.4 | I227: =SUM(I224:I226) -> 39.9 | J227: =SUM(J224:J226) -> 208.9 | L227: =SUM(L224:L226) -> 19.28
A228: 1 | B228: 6 | C228: Обед | D228: закуска
D229: 1 блюдо
D230: 2 блюдо
D231: гарнир
D232: напиток
D233: хлеб бел.
D234: хлеб черн.
D237: итого | F237: 0 | G237: 0 | H237: 0 | I237: 0 | J237: 0 | L237: 0
A238: 1 | B238: 6 | C238: Полдник | D238: булочное
D239: напиток
D242: итого | F242: 0 | G242: 0 | H242: 0 | I242: 0 | J242: 0 | L242: 0
A243: 1 | B243: 6 | C243: Ужин | D243: гор.блюдо
D244: гарнир
D245: напиток
D246: хлеб
... 270 more rows
